bitfinex-derivatives/quotes_SOLF0:USTF0_20250905
["timestamp","ask_amount","ask_price","bid_price","bid_amount"]
[1757064602798,8.22,204.93,204.86,8.02]
[1757064602992,4.3922,204.89,204.86,8.02]
[1757064603898,8.22,204.87,204.84,121.74]
[1757064604092,8.22,204.87,204.83,121.72]
[1757064604297,8.22,204.87,204.84,8.02]
[1757064605392,8.22,204.91,204.82,121.72]
[1757064605593,68.3138,204.92,204.82,121.72]
[1757064605896,8.22,204.91,204.82,121.72]
[1757064606494,68.3138,204.92,204.82,121.72]
[1757064606695,8.22,204.91,204.82,121.72]
[1757064606900,4.3927,204.87,204.82,121.72]
[1757064607199,12.6127,204.87,204.82,121.72]
[1757064607399,12.6127,204.87,204.83,8.02]
[1757064608300,8.22,204.86,204.83,8.02]
[1757064608801,8.22,204.88,204.78,8.02]
[1757064609001,76.5467,204.88,204.78,8.02]
[1757064609304,4.3928,204.86,204.78,8.02]
[1757064609495,8.22,204.88,204.78,8.02]
[1757064610198,8.22,204.95,204.78,8.02]
[1757064610596,0.03611025,204.89,204.78,8.02]
[1757064611301,0.03611025,204.89,204.83,8.02]
[1757064611500,0.03611025,204.89,204.83,56.84]
[1757064611896,0.03611025,204.89,204.83,61.2333]
[1757064612093,0.03611025,204.89,204.84,8.02]
[1757064612296,0.03611025,204.89,204.83,48.82]
[1757064612797,0.03611025,204.89,204.84,8.02]
[1757064613002,0.03611025,204.89,204.83,48.82]
[1757064613596,0.03611025,204.89,204.84,8.02]
[1757064614000,0.03611025,204.89,204.84,4.3931]
[1757064614201,0.03611025,204.89,204.85,8.02]
[1757064614502,8.25611025,204.89,204.85,8.02]
[1757064614701,8.25611025,204.89,204.81,8.02]
[1757064614908,8.25611025,204.89,204.81,74.8]
[1757064615409,8.25611025,204.89,204.81,8.02]
[1757064615809,8.22,204.88,204.81,8.02]
[1757064616804,4.3933,204.84,204.76,9.80792733]
[1757064617008,4.3933,204.84,204.77,8.02]
[1757064617512,0.0355649,204.83,204.77,12.4146]
[1757064620014,0.0355649,204.83,204.77,8.02]
[1757064620311,4.4291649,204.83,204.77,129.74]
[1757064620708,4.4291649,204.83,204.77,8.02]
[1757064620912,7.9455649,204.83,204.76,49.2]
[1757064621615,4.394,204.81,204.77,7.77]
[1757064621802,4.394,204.81,204.76,49.2]
[1757064622006,4.394,204.81,204.77,7.77]
[1757064622207,4.394,204.81,204.76,49.2]
[1757064622514,4.394,204.81,204.77,7.77]
[1757064622713,12.3042,204.8,204.74,7.77]
[1757064622913,12.3042,204.8,204.74,106.95]
[1757064623409,0.03149587,204.79,204.71,9.80892733]
[1757064623613,0.03149587,204.79,204.72,129.49]
[1757064623909,0.03149587,204.79,204.73,7.77]
[1757064625316,0.03149587,204.79,204.75,4.3949]
[1757064626210,0.03149587,204.79,204.76,7.77]
[1757064627210,0.03149587,204.79,204.75,4.3949]
[1757064627506,0.03149587,204.79,204.76,7.77]
[1757064627913,0.03149587,204.79,204.75,4.3949]
[1757064628112,0.03149587,204.79,204.76,7.77]
[1757064628313,0.03149587,204.79,204.75,4.3949]
[1757064628714,0.03149587,204.79,204.76,7.77]
[1757064628909,0.03149587,204.79,204.75,4.3949]
[1757064629909,0.03149587,204.79,204.75,121.74]
[1757064630218,0.03149587,204.79,204.76,7.77]
[1757064630610,0.03149587,204.79,204.75,121.74]
[1757064631317,0.03149587,204.79,204.76,7.77]
[1757064631519,0.03149587,204.79,204.75,126.135]
[1757064631717,0.03149587,204.79,204.76,7.77]
[1757064631920,0.03149587,204.79,204.75,126.135]
[1757064632118,0.03149587,204.79,204.76,7.77]
[1757064632320,0.03149587,204.79,204.75,126.135]
[1757064632621,0.03149587,204.79,204.76,4.3948]
[1757064634124,0.03149587,204.79,204.75,121.74]
[1757064634125,0.03149587,204.79,204.78,7.77]
[1757064636426,0.03149587,204.79,204.76,129.51]
[1757064637326,0.03149587,204.79,204.77,7.77]
[1757064637527,0.03149587,204.79,204.76,126.1348]
[1757064638123,0.03149587,204.79,204.78,7.77]
[1757064641830,0.03149587,204.79,204.72,5.41302733]
[1757064642023,7.91,204.78,204.72,5.41302733]
[1757064642224,68.3664,204.76,204.72,2.733e-05]
[1757064642532,68.3901,204.69,204.58,13.21351951]
[1757064642732,3.81389164,204.68,204.59,7.77]
[1757064642932,3.81389164,204.67,204.59,7.77]
[1757064643329,7.91,204.66,204.62,10.946188]
[1757064643729,7.91,204.71,204.63,7.77]
[1757064643926,3.80809646,204.7,204.63,7.77]
[1757064644130,3.80809646,204.69,204.63,7.77]
[1757064644328,7.91,204.72,204.62,18.716188]
[1757064644529,3.80446474,204.71,204.63,7.77]
[1757064644928,3.80446474,204.71,204.63,12.1675]
[1757064645433,3.80446474,204.71,204.63,7.77]
[1757064645833,7.91,204.7,204.63,7.77]
[1757064646034,3.80446474,204.69,204.63,7.77]
[1757064646330,7.91,204.7,204.63,12.1677]
[1757064646533,7.91,204.74,204.63,12.1677]
[1757064646733,7.53045389,204.73,204.63,12.1677]
[1757064646928,3.80012081,204.72,204.64,4.3973]
[1757064647136,3.80012081,204.71,204.64,4.3973]
[1757064647336,12.3054,204.74,204.65,7.77]
[1757064647337,7.91,204.74,204.65,7.77]
[1757064647537,3.79908449,204.73,204.65,12.1671]
[1757064647735,3.79912564,204.72,204.65,12.1671]
[1757064647934,7.91,204.74,204.65,7.77]
[1757064647935,3.79876687,204.71,204.65,7.77]
[1757064648234,121.88,204.77,204.63,7.62]
[1757064648434,0.0308521,204.7,204.63,7.62]
[1757064649445,0.0308521,204.7,204.66,7.62]
[1757064649741,0.0308521,204.7,204.63,7.62]
[1757064650237,0.0308521,204.7,204.66,7.62]
[1757064650442,8.1108521,204.7,204.56,69.28327754]
[1757064650643,0.0308521,204.7,204.57,129.6]
[1757064650843,8.08,204.71,204.58,7.62]
[1757064651238,0.03084092,204.67,204.58,7.62]
[1757064651843,0.03084092,204.67,204.59,4.3984]
[1757064652543,0.03084092,204.67,204.6,7.62]
[1757064652843,0.03084092,204.67,204.61,4.398]
[1757064653043,0.03084092,204.67,204.61,7.62]
[1757064653541,0.03084092,204.67,204.62,4.3978]
[1757064653739,0.03084092,204.67,204.63,122.0]
[1757064654036,0.03084092,204.67,204.64,7.62]
[1757064654541,0.03084092,204.67,204.63,122.0]
[1757064654942,0.03084092,204.67,204.64,7.62]
[1757064655840,0.03084092,204.67,204.65,4.3971]
[1757064656043,0.03084092,204.67,204.66,7.62]
[1757064658145,8.08,204.76,204.69,4.3964]
[1757064658344,8.08,204.76,204.7,129.56]
[1757064659447,8.08,204.76,204.71,0.03366739]
[1757064659641,4.3947,204.78,204.71,0.03366739]
[1757064659840,8.08,204.77,204.71,0.03366739]
[1757064660042,8.08,204.77,204.69,121.88]
[1757064660442,8.08,204.83,204.7,7.62]
[1757064660644,8.08,204.81,204.71,0.03529]
[1757064660844,8.08,204.79,204.71,0.03529]
[1757064661041,3.79533395,204.78,204.7,7.62]
[1757064661347,8.08,204.79,204.73,0.03615568]
[1757064661544,8.08,204.77,204.73,0.03615568]
[1757064662247,8.08,204.77,204.73,7.65615568]
[1757064663049,4.3947,204.78,204.73,0.03615568]
[1757064663248,8.08,204.77,204.73,0.03615568]
[1757064663747,8.08,204.76,204.73,0.03615568]
[1757064664138,4.3949,204.77,204.73,0.03615568]
[1757064664445,8.08,204.76,204.73,0.03615568]
[1757064664646,4.3949,204.77,204.73,0.03615568]
[1757064665248,8.08,204.76,204.73,0.03615568]
[1757064665745,4.3949,204.77,204.73,0.03615568]
[1757064666139,8.08,204.76,204.73,0.03615568]
[1757064666953,12.4751,204.76,204.73,0.03615568]
[1757064667146,4.3951,204.76,204.73,0.03615568]
[1757064667352,8.08,204.75,204.73,0.03615568]
[1757064667652,4.3951,204.76,204.73,0.03615568]
[1757064667847,8.08,204.75,204.73,0.03615568]
[1757064668353,4.3951,204.76,204.73,0.03615568]
[1757064668654,8.08,204.77,204.73,7.65615568]
[1757064668953,8.08,204.77,204.73,0.03615568]
[1757064669155,8.08,204.76,204.73,0.03615568]
[1757064669647,4.3951,204.75,204.73,0.03615568]
[1757064669851,8.08,204.74,204.73,0.03615568]
[1757064670048,8.08,204.81,204.73,0.03615568]
[1757064670251,8.08,204.79,204.73,0.03615568]
[1757064670449,3.80195237,204.78,204.73,0.03615568]
[1757064670650,8.08,204.76,204.73,0.03615568]
[1757064670849,8.08,204.83,204.73,0.03615568]
[1757064671050,8.08,204.81,204.73,0.03615568]
[1757064671251,7.53519969,204.8,204.73,0.03615568]
[1757064671455,3.80174841,204.79,204.71,7.62]
[1757064671648,3.80174841,204.78,204.74,7.65589531]
[1757064671853,8.08,204.81,204.74,7.65589531]
[1757064672052,3.80337778,204.8,204.74,7.65589531]
[1757064672246,3.80337778,204.79,204.75,7.62]
[1757064672451,8.08,204.81,204.75,7.62]
[1757064672652,3.80443845,204.8,204.74,7.65589531]
[1757064672851,8.08,204.81,204.74,7.65589531]
[1757064673049,3.80444578,204.8,204.74,7.65589531]
[1757064673254,8.08,204.81,204.74,7.65589531]
[1757064673555,3.80492954,204.8,204.74,7.65589531]
[1757064673757,8.08,204.81,204.74,7.65589531]
[1757064673956,3.80494617,204.8,204.75,4.395]
[1757064674160,3.80515418,204.79,204.75,4.395]
[1757064674357,8.08,204.81,204.75,4.395]
[1757064674657,3.8054721,204.8,204.74,0.03589531]
[1757064674957,8.08,204.85,204.75,129.38]
[1757064675161,3.80588574,204.84,204.75,129.38]
[1757064675455,3.80588574,204.83,204.78,4.3943]
[1757064675656,13.43333583,204.87,204.76,7.62]
[1757064675860,3.80639159,204.86,204.76,7.62]
[1757064676154,11.88639159,204.85,204.79,0.03388768]
[1757064676356,3.80639159,204.84,204.79,0.03388768]
[1757064676552,8.08,204.85,204.79,0.03388768]
[1757064676752,3.80632355,204.84,204.8,7.62]
[1757064676952,8.08,204.85,204.8,7.62]
[1757064677150,3.80632355,204.84,204.8,12.0139]
[1757064677354,8.08,204.85,204.81,7.62]
[1757064677554,3.80625575,204.84,204.81,7.62]
[1757064677853,8.08,204.85,204.81,7.62]
[1757064678054,3.80625575,204.84,204.81,7.62]
[1757064678255,8.08,204.85,204.81,7.62]
[1757064678453,3.8061882,204.84,204.81,7.62]
[1757064678658,8.08,204.85,204.81,7.62]
[1757064678855,3.8061882,204.84,204.81,7.62]
[1757064679050,8.08,204.85,204.81,7.62]
[1757064679254,8.18,204.83,204.79,0.03388768]
[1757064679457,8.18,204.86,204.79,0.03388768]
[1757064679655,3.80612055,204.85,204.79,0.03388768]
[1757064679856,11.98612055,204.84,204.8,7.45]
[1757064680057,8.18,204.84,204.8,7.45]
[1757064680559,8.18,204.79,204.61,7.45]
[1757064680758,76.55,204.75,204.61,7.45]
[1757064680960,8.18,204.73,204.61,7.45]
[1757064681159,8.18,204.69,204.61,7.45]
[1757064681360,8.18,204.69,204.65,8.17154327]
[1757064681760,4.3964,204.7,204.65,8.17154327]
[1757064681951,8.18,204.68,204.65,8.17154327]
[1757064682151,4.42882392,204.69,204.65,8.17154327]
[1757064683054,8.18,204.68,204.65,8.17154327]
[1757064683958,0.03222392,204.69,204.66,7.45]
[1757064684553,0.03222392,204.69,204.66,4.3971]
[1757064684754,0.03222392,204.69,204.67,7.45]
[1757064684961,0.03222392,204.69,204.66,7.45]
[1757064685163,0.03222392,204.69,204.68,7.45]
[1757064690054,0.03222392,204.69,204.65,129.71]
[1757064690262,0.03222392,204.69,204.65,7.45]
[1757064690455,8.21222392,204.69,204.65,7.45]
[1757064690659,8.21222392,204.69,204.62,126.7179]
[1757064691060,8.21222392,204.69,204.62,122.32]
[1757064691256,8.21222392,204.69,204.61,129.77]
[1757064691962,8.21222392,204.69,204.61,7.45]
[1757064692266,3.80273907,204.68,204.61,7.45]
[1757064692466,8.21222392,204.69,204.61,7.45]
[1757064692664,3.80244859,204.68,204.61,7.45]
[1757064692861,8.21222392,204.69,204.61,7.45]
[1757064695266,0.03222392,204.69,204.61,7.45]
[1757064696269,0.03222392,204.69,204.61,129.63]
[1757064697174,4.3967,204.68,204.61,129.63]
[1757064697364,11.9972341,204.67,204.57,7.45]
[1757064697564,8.18,204.67,204.57,129.67]
[1757064697971,0.03214624,204.64,204.57,129.67]
[1757064698268,0.03214624,204.64,204.58,7.45]
[1757064699070,0.03214624,204.64,204.6,7.45]
[1757064699470,8.21214624,204.64,204.58,122.6]
[1757064699668,8.21214624,204.64,204.57,7.45]
[1757064700370,12.60974624,204.64,204.56,122.68]
[1757064700870,8.21214624,204.64,204.56,122.68]
[1757064701069,8.21214624,204.64,204.56,127.0791]
[1757064702175,12.60974624,204.64,204.56,127.0791]
[1757064705177,12.60974624,204.64,204.56,122.68]
[1757064705775,4.3979,204.63,204.56,122.68]
[1757064707076,12.5781,204.62,204.54,7.45]
[1757064707277,12.5781,204.62,204.55,122.58]
[1757064707879,12.5781,204.62,204.55,126.9793]
[1757064709681,8.18,204.62,204.56,4.3991]
[1757064709879,4.42964624,204.64,204.57,7.68]
[1757064710284,0.03214624,204.64,204.58,4.3986]
[1757064710981,0.03214624,204.64,204.6,7.68]
[1757064711181,0.03214624,204.64,204.56,76.1122]
[1757064711377,0.03214624,204.64,204.58,7.68]
[1757064712383,0.03214624,204.64,204.63,7.68]
[1757064713776,0.03214624,204.64,204.6,7.68]
[1757064713982,0.03214624,204.64,204.53,7.68]
[1757064714381,4.398,204.62,204.55,4.3993]
[1757064714985,0.03214624,204.64,204.54,7.68]
[1757064715385,8.02,204.65,204.54,7.68]
[1757064715580,0.03444735,204.61,204.58,4.3987]
[1757064715780,0.03444735,204.61,204.58,122.76]
[1757064715987,0.03444735,204.61,204.54,7.68]
[1757064716188,0.03444735,204.61,204.55,122.74]
[1757064716687,0.03444735,204.61,204.56,4.3992]
[1757064716986,0.03444735,204.61,204.57,7.68]
[1757064717482,8.05444735,204.61,204.55,122.74]
[1757064717688,8.05444735,204.61,204.54,4.3996]
[1757064717991,8.05444735,204.61,204.55,122.98]
[1757064718293,8.05444735,204.61,204.55,135.0593]
[1757064719492,0.03444735,204.61,204.55,135.0593]
[1757064719688,0.03444735,204.61,204.56,4.3991]
[1757064719892,0.03444735,204.61,204.57,7.68]
[1757064720792,0.03444735,204.61,204.56,7.68]
[1757064720995,0.03444735,204.61,204.55,122.92]
[1757064721292,0.03444735,204.61,204.56,7.68]
[1757064721889,0.03444735,204.61,204.55,127.3193]
[1757064722094,0.03444735,204.61,204.55,134.9993]
[1757064723795,0.03444735,204.61,204.56,4.3991]
[1757064724092,0.03444735,204.61,204.57,68.4289]
[1757064724294,0.03444735,204.61,204.58,7.68]
[1757064724894,0.03444735,204.61,204.59,4.3985]
[1757064725200,8.02,204.75,204.61,7.68]
[1757064725393,5.35333583,204.73,204.61,7.68]
[1757064725594,3.81550778,204.72,204.61,7.68]
[1757064725793,3.81550778,204.71,204.62,122.8]
[1757064725989,3.81550778,204.7,204.62,122.8]
[1757064726295,3.81550778,204.69,204.64,0.03185835]
[1757064726490,3.81550778,204.68,204.64,7.71185835]
[1757064726688,3.81550778,204.67,204.64,7.71185835]
[1757064726889,12.4165,204.69,204.64,7.71185835]
[1757064727091,3.81494395,204.68,204.65,7.68]
[1757064727296,4.3961,204.71,204.64,0.03185835]
[1757064727596,3.81516234,204.7,204.64,0.03185835]
[1757064727895,3.81516234,204.69,204.65,7.68]
[1757064728097,3.81516234,204.68,204.65,7.68]
[1757064728301,4.3961,204.71,204.64,7.71185835]
[1757064728494,3.81507028,204.7,204.64,7.71185835]
[1757064728692,3.81507028,204.69,204.65,7.68]
[1757064728891,3.81507028,204.68,204.65,7.68]
[1757064729097,4.3961,204.71,204.64,12.10925835]
[1757064729300,3.81527904,204.7,204.64,12.10925835]
[1757064729499,3.81527904,204.69,204.65,7.68]
[1757064729695,11.83527904,204.68,204.64,0.03185835]
[1757064729894,3.81112663,204.67,204.64,0.03185835]
[1757064730101,8.02,204.71,204.64,0.03185835]
[1757064730400,3.81168292,204.7,204.64,0.03185835]
[1757064730695,3.81168292,204.69,204.65,7.68]
[1757064730900,3.81168292,204.68,204.65,7.68]
[1757064731100,3.81168292,204.67,204.65,7.68]
[1757064731401,4.3966,204.69,204.65,7.68]
[1757064731599,3.81243406,204.68,204.65,7.68]
[1757064731900,3.81243406,204.67,204.65,7.68]
[1757064732096,12.4161,204.71,204.65,7.68]
[1757064732294,11.83312578,204.7,204.65,7.68]
[1757064732497,3.81312578,204.69,204.65,7.68]
[1757064732700,3.81312578,204.68,204.64,0.03185835]
[1757064732902,4.3957,204.73,204.65,7.68]
[1757064733098,3.81366451,204.72,204.67,4.3967]
[1757064733404,3.81366451,204.71,204.67,4.3967]
[1757064733699,3.81366451,204.7,204.67,4.3967]
[1757064733998,4.3952,204.75,204.68,126.9365]
[1757064734203,3.81497363,204.74,204.68,126.9365]
[1757064734399,3.81497363,204.73,204.69,7.68]
[1757064734599,3.81497363,204.72,204.68,122.54]
[1757064734800,9.74813583,204.77,204.69,7.68]
[1757064734997,3.81425495,204.76,204.69,7.68]
[1757064735196,3.81425495,204.75,204.69,12.0762]
[1757064735396,9.74813583,204.77,204.69,12.0762]
[1757064735397,3.81425495,204.74,204.69,4.3962]
[1757064735601,3.81425495,204.73,204.7,7.68]
[1757064735801,3.81425495,204.72,204.7,7.68]
[1757064736002,4.3948,204.77,204.7,7.68]
[1757064736203,3.8142148,204.76,204.7,7.68]
[1757064736404,11.8342148,204.75,204.7,7.68]
[1757064736701,3.8142148,204.74,204.7,7.68]
[1757064736901,3.8142148,204.73,204.7,7.68]
[1757064737099,3.8142148,204.72,204.7,7.68]
[1757064737293,8.02,204.75,204.7,7.68]
[1757064737498,3.81269679,204.74,204.7,7.68]
[1757064737705,3.81269679,204.73,204.7,7.68]
[1757064737899,8.02,204.75,204.7,7.68]
[1757064738109,3.81269679,204.74,204.7,7.68]
[1757064738302,3.81269679,204.73,204.69,0.03082309]
[1757064738507,3.81269679,204.72,204.69,122.41082309]
[1757064738704,7.63,204.73,204.69,130.32082309]
[1757064739003,3.8120919,204.72,204.7,7.91]
[1757064739210,12.0248,204.77,204.7,7.91]
[1757064739403,3.81139912,204.76,204.7,7.91]
[1757064739602,3.81139912,204.75,204.71,0.03397171]
[1757064739806,7.63,204.81,204.72,7.91]
[1757064740011,3.8119926,204.8,204.73,4.3955]
[1757064740310,3.8119926,204.79,204.72,7.91]
[1757064740503,3.8119926,204.78,204.72,7.91]
[1757064740702,3.8119926,204.77,204.72,7.91]
[1757064740903,3.8119926,204.76,204.73,4.3955]
[1757064741109,5.35333583,204.82,204.74,130.21]
[1757064741409,3.80922439,204.81,204.74,130.21]
[1757064741609,3.80922439,204.8,204.77,7.91]
[1757064741811,3.80922439,204.79,204.77,7.91]
[1757064742007,3.80922439,204.78,204.77,7.91]
[1757064743611,7.63,204.77,204.75,0.03167074]
[1757064743812,3.80579857,204.76,204.75,0.03167074]
[1757064744014,11.43579857,204.76,204.75,0.03167074]
[1757064751719,3.80579857,204.76,204.75,0.03167074]
[1757064752019,7.63,204.79,204.76,7.91]
[1757064752315,3.80381397,204.78,204.76,12.3048]
[1757064752508,7.63,204.82,204.76,12.3048]
[1757064752714,7.63,204.8,204.76,12.3048]
[1757064752915,3.80302899,204.79,204.76,12.3048]
[1757064753725,3.80302899,204.79,204.77,4.3946]
[1757064754020,7.63,204.84,204.78,7.91]
[1757064754222,3.8109471,204.83,204.79,4.3942]
[1757064754520,7.63,204.81,204.75,7.91]
[1757064754721,7.63,204.88,204.75,117.05]
[1757064755018,7.63,204.86,204.79,0.03163061]
[1757064755222,3.81102968,204.85,204.79,0.03163061]
[1757064755517,11.44102968,204.85,204.81,4.3937]
[1757064755718,3.81102968,204.84,204.81,12.3037]
[1757064755918,3.81102968,204.83,204.81,12.3037]
[1757064756119,7.63,204.85,204.81,12.3037]
[1757064756320,3.80983609,204.84,204.81,12.3037]
[1757064756521,3.80983609,204.83,204.81,12.3037]
[1757064756720,7.63,204.85,204.81,12.3037]
[1757064756922,11.43982803,204.84,204.81,12.3037]
[1757064757221,3.80982803,204.83,204.81,12.3037]
[1757064757425,7.63,204.84,204.81,12.3037]
[1757064758126,12.0227,204.87,204.81,12.3037]
[1757064758314,3.80953625,204.86,204.81,12.3037]
[1757064758520,11.43953625,204.85,204.81,12.3037]
[1757064758721,3.80953625,204.84,204.81,12.3037]
[1757064759223,3.80953625,204.84,204.82,7.91]
[1757064759430,7.63,204.86,204.82,7.91]
[1757064759628,3.81011538,204.85,204.82,7.91]
[1757064759822,3.81011538,204.84,204.82,7.91]
[1757064760020,4.3922,204.89,204.82,12.3035]
[1757064760324,3.81067788,204.88,204.82,12.3035]
[1757064760627,11.44067788,204.87,204.83,7.94294769]
[1757064760826,3.81067788,204.86,204.83,7.94294769]
[1757064761027,3.81067788,204.85,204.83,7.94294769]
[1757064761227,7.63,204.87,204.83,7.94294769]
[1757064761423,3.80973486,204.86,204.83,7.94294769]
[1757064761627,3.80973486,204.85,204.83,7.94294769]
[1757064761828,7.63,204.85,204.83,0.03294769]
[1757064762923,11.4404843,204.84,204.83,0.03294769]
[1757064763330,3.8104843,204.84,204.83,0.03294769]
[1757064764126,11.4404843,204.84,204.83,0.03294769]
[1757064767929,3.8104843,204.84,204.83,0.03294769]
[1757064769934,3.8104843,204.84,204.83,7.56294769]
[1757064770230,3.8104843,204.84,204.83,0.03294769]
[1757064771338,3.8104843,204.84,204.83,7.56294769]
[1757064772836,7.95,204.93,204.85,4.393]
[1757064773038,7.95,204.91,204.85,4.393]
[1757064773235,7.95,204.89,204.85,11.923]
[1757064773533,7.95,204.87,204.86,0.03157809]
[1757064773732,11.76904077,204.87,204.86,0.03157809]
[1757064776246,7.95,204.84,204.75,7.53]
[1757064776543,3.81904077,204.83,204.76,121.84]
[1757064777544,0.03171783,204.82,204.76,121.84]
[1757064777740,11.76904077,204.81,204.79,4.3941]
[1757064777935,7.95,204.79,204.74,101.37567449]
[1757064778141,7.95,204.81,204.7,75.9138]
[1757064778338,3.82226795,204.8,204.74,4.3953]
[1757064778542,7.95,204.78,204.74,4.3953]
[1757064778743,11.77226795,204.77,204.74,4.3953]
[1757064778945,7.95,204.77,204.74,4.3953]
[1757064779444,7.95,204.78,204.74,11.9253]
[1757064779646,3.82235554,204.77,204.74,11.9253]
[1757064779842,7.95,204.78,204.74,11.9253]
[1757064780042,3.82234697,204.77,204.74,11.9253]
[1757064780247,7.95,204.78,204.74,11.9253]
[1757064780546,3.82263156,204.77,204.74,11.9253]
[1757064780747,7.95,204.78,204.74,11.9253]
[1757064780948,3.82263156,204.77,204.74,11.9253]
[1757064781147,7.95,204.78,204.74,11.9253]
[1757064781447,3.82296018,204.77,204.74,11.9253]
[1757064781647,7.95,204.78,204.74,11.9253]
[1757064781846,3.82269235,204.77,204.74,11.9253]
[1757064782047,7.95,204.78,204.74,11.9253]
[1757064782348,3.82315173,204.77,204.74,11.9253]
[1757064782645,7.95,204.78,204.74,11.9253]
[1757064782847,3.82807372,204.77,204.74,11.9253]
[1757064783047,7.95,204.78,204.74,11.9253]
[1757064783249,3.82860044,204.77,204.74,11.9253]
[1757064783448,7.95,204.78,204.74,11.9253]
[1757064783651,3.82864608,204.77,204.74,11.9253]
[1757064783850,7.95,204.78,204.74,11.9253]
[1757064784050,3.82868847,204.77,204.74,11.9253]
[1757064784251,7.95,204.78,204.74,11.9253]
[1757064784552,11.77945783,204.77,204.72,133.7457]
[1757064784848,3.82945783,204.76,204.73,7.53]
[1757064785050,7.95,204.77,204.73,7.53]
[1757064785249,3.82925966,204.76,204.73,7.53]
[1757064785551,3.82900458,204.75,204.69,7.53]
[1757064785748,3.82900458,204.74,204.69,7.53]
[1757064785944,11.77877787,204.73,204.69,7.53]
[1757064786145,7.95,204.72,204.69,7.53]
[1757064786450,7.95,204.73,204.67,314.62]
[1757064786646,7.95,204.71,204.67,314.62]
[1757064786951,7.95,204.71,204.65,7.53]
[1757064787545,7.95,204.69,204.65,7.53]
[1757064788151,7.95,204.7,204.65,7.53]
[1757064788346,0.03209941,204.69,204.64,81.46]
[1757064788746,7.95,204.68,204.64,81.46]
[1757064788946,7.95,204.68,204.64,88.99]
[1757064789147,7.95,204.68,204.65,7.53]
[1757064789553,0.03209941,204.69,204.65,7.53]
[1757064789950,7.98209941,204.69,204.65,7.53]
[1757064790753,7.95,204.68,204.65,7.53]
[1757064790954,0.03209941,204.69,204.65,7.53]
[1757064791146,0.03209941,204.69,204.64,82.80488033]
[1757064791452,0.03209941,204.69,204.65,7.53]
[1757064791753,0.03209941,204.69,204.64,81.46]
[1757064791946,0.03209941,204.69,204.65,7.53]
[1757064792451,0.03209941,204.69,204.67,7.53]
[1757064792753,0.03209941,204.69,204.68,7.53]
[1757064793149,0.03209941,204.69,204.68,8.87488033]
[1757064794153,0.03209941,204.69,204.68,7.53]
[1757064794351,0.03209941,204.69,204.68,8.87488033]
[1757064797250,0.03209941,204.69,204.68,7.53]
[1757064797454,0.03209941,204.69,204.68,8.87488033]
[1757064799254,9.46488033,204.79,204.71,4.3959]
[1757064799453,3.81764396,204.78,204.71,5.74078033]
[1757064799653,3.81764396,204.77,204.71,5.74078033]
[1757064799851,11.93764396,204.76,204.71,13.15078033]
[1757064800052,3.81764396,204.75,204.71,13.15078033]
[1757064800254,8.12,204.76,204.71,13.15078033]
[1757064800454,11.93647094,204.75,204.71,13.18640671]
[1757064800651,8.12,204.73,204.71,0.03562638]
[1757064800856,11.93581914,204.72,204.71,0.03562638]
[1757064803860,8.12,204.72,204.71,0.03562638]
[1757064809261,8.12,204.75,204.71,0.03562638]
[1757064809462,3.81435936,204.74,204.71,7.44562638]
[1757064809660,8.12,204.75,204.71,7.44562638]
[1757064809862,1.34488033,204.78,204.71,0.03562638]
[1757064810064,11.93492728,204.77,204.71,0.03562638]
[1757064810263,8.12,204.75,204.71,0.03562638]
[1757064810467,8.12,204.73,204.71,0.03562638]
[1757064810761,8.12,204.75,204.71,0.03562638]